[Event "Titled Tuesday Blitz June 27 Early 2023"]
[White "Herzog2012"]
[Black "le-castor-faineant"]
[WhiteElo "2464"]
[BlackElo "2140"]
[Result "1-0"]
[Round "2"]
[TimeControl "180+2"]
[Date "2023.06.27"]
[WhiteClock "0:00:07"]
[BlackClock "0:00:06"]
[Board "224"]

1. e4 {[%clk 0:03:00]}  e5 {[%clk 0:02:58]} 2. Nc3 {[%clk 0:03:00]}  Nf6 {[%clk 0:02:53]} 3. g3 {[%clk 0:03:01]}  d5 {[%clk 0:02:50]} 4. exd5 {[%clk 0:03:01]}  Nxd5 {[%clk 0:02:51]} 5. Bg2 {[%clk 0:03:02]}  Nxc3 {[%clk 0:02:51]} 6. bxc3 {[%clk 0:03:01]}  Bc5 {[%clk 0:02:51]} 7. Nf3 {[%clk 0:03:01]}  Nc6 {[%clk 0:02:50]} 8. O-O {[%clk 0:03:02]}  O-O {[%clk 0:02:50]} 9. d3 {[%clk 0:03:03]}  Bg4 {[%clk 0:02:49]} 10. h3 {[%clk 0:03:02]}  Bh5 {[%clk 0:02:49]} 11. Qe1 {[%clk 0:03:03]}  Re8 {[%clk 0:02:49]} 12. Qe4 {[%clk 0:03:02]}  Bg6 {[%clk 0:02:48]} 13. Qc4 {[%clk 0:03:00]}  Bb6 {[%clk 0:02:46]} 14. Nh4 {[%clk 0:03:00]}  Na5 {[%clk 0:02:37]} 15. Qa4 {[%clk 0:02:53]}  Qf6 {[%clk 0:01:59]} 16. Nxg6 {[%clk 0:02:42]}  Qxg6 {[%clk 0:02:00]} 17. Kh2 {[%clk 0:02:35]}  f5 {[%clk 0:01:33]} 18. c4 {[%clk 0:02:33]}  Nc6 {[%clk 0:01:23]} 19. Qb5 {[%clk 0:02:20]}  Bd4 {[%clk 0:01:21]} 20. Rb1 {[%clk 0:02:16]}  Rab8 {[%clk 0:01:17]} 21. Bd2 {[%clk 0:01:20]}  a6 {[%clk 0:01:17]} 22. Qd5+ {[%clk 0:01:19]}  Kh8 {[%clk 0:01:17]} 23. Rbe1 {[%clk 0:00:30]}  Ne7 {[%clk 0:01:10]} 24. Qf3 {[%clk 0:00:29]}  Ng8 {[%clk 0:01:08]} 25. c3 {[%clk 0:00:21]}  Bc5 {[%clk 0:01:00]} 26. Be3 {[%clk 0:00:21]}  Bxe3 {[%clk 0:00:56]} 27. fxe3 {[%clk 0:00:21]}  Rf8 {[%clk 0:00:53]} 28. d4 {[%clk 0:00:21]}  e4 {[%clk 0:00:52]} 29. Qf4 {[%clk 0:00:21]}  Qf6 {[%clk 0:00:43]} 30. g4 {[%clk 0:00:17]}  Ne7 {[%clk 0:00:33]} 31. gxf5 {[%clk 0:00:16]}  Qxf5 {[%clk 0:00:14]} 32. Qxf5 {[%clk 0:00:15]}  Nxf5 {[%clk 0:00:15]} 33. Bxe4 {[%clk 0:00:15]}  Nd6 {[%clk 0:00:12]} 34. Bd3 {[%clk 0:00:15]}  Rxf1 {[%clk 0:00:11]} 35. Rxf1 {[%clk 0:00:16]}  Re8 {[%clk 0:00:10]} 36. Re1 {[%clk 0:00:16]}  g5 {[%clk 0:00:10]} 37. e4 {[%clk 0:00:16]}  c5 {[%clk 0:00:07]} 38. e5 {[%clk 0:00:16]}  Nf7 {[%clk 0:00:04]} 39. e6 {[%clk 0:00:16]}  Nd6 {[%clk 0:00:04]} 40. d5 {[%clk 0:00:16]}  Kg7 {[%clk 0:00:04]} 41. Rf1 {[%clk 0:00:15]}  h6 {[%clk 0:00:05]} 42. Kg3 {[%clk 0:00:15]}  b6 {[%clk 0:00:04]} 43. h4 {[%clk 0:00:14]}  Rf8 {[%clk 0:00:03]} 44. Re1 {[%clk 0:00:13]}  Rf4 {[%clk 0:00:02]} 45. hxg5 {[%clk 0:00:13]}  hxg5 {[%clk 0:00:02]} 46. e7 {[%clk 0:00:11]}  Kf7 {[%clk 0:00:03]} 47. Re5 {[%clk 0:00:08]}  Rf6 {[%clk 0:00:02]} 48. Rxg5 {[%clk 0:00:04]}  Kxe7 {[%clk 0:00:03]} 49. Rg7+ {[%clk 0:00:05]}  Rf7 {[%clk 0:00:03]} 50. Rg8 {[%clk 0:00:05]}  Rf8 {[%clk 0:00:03]} 51. Rg6 {[%clk 0:00:04]}  Rf6 {[%clk 0:00:03]} 52. Rg5 {[%clk 0:00:05]}  b5 {[%clk 0:00:02]} 53. Re5+ {[%clk 0:00:05]}  Kd7 {[%clk 0:00:02]} 54. cxb5 {[%clk 0:00:05]}  axb5 {[%clk 0:00:03]} 55. Rh5 {[%clk 0:00:05]}  c4 {[%clk 0:00:04]} 56. Bc2 {[%clk 0:00:04]}  Nf5+ {[%clk 0:00:04]} 57. Rxf5 {[%clk 0:00:03]}  Rxf5 {[%clk 0:00:04]} 58. Bxf5+ {[%clk 0:00:04]}  Kd6 {[%clk 0:00:04]} 59. Be6 {[%clk 0:00:05]}  Ke5 {[%clk 0:00:04]} 60. Kf3 {[%clk 0:00:05]}  b4 {[%clk 0:00:04]} 61. cxb4 {[%clk 0:00:06]}  c3 {[%clk 0:00:05]} 62. Ke3 {[%clk 0:00:06]}  c2 {[%clk 0:00:06]} 63. Kd2 {[%clk 0:00:06]}  c1=Q+ {[%clk 0:00:06]} 64. Kxc1 {[%clk 0:00:07]} 1-0


[Site "https://www.chess.com"]

[Event "Titled Tuesday Blitz June 27 Early 2023"]
[White "Sanhueza, Cristian"]
[Black "Flis, Pawel"]
[WhiteFideId "116815"]
[BlackFideId "1112864"]
[WhiteElo "2462"]
[BlackElo "2137"]
[Result "1-0"]
[Round "2"]
[TimeControl "180+2"]
[Date "2023.06.27"]
[WhiteClock "0:01:09"]
[BlackClock "0:00:00"]
[Board "225"]

1. e4 {[%clk 0:03:00]}  c5 {[%clk 0:02:59]} 2. Nf3 {[%clk 0:03:00]}  d6 {[%clk 0:02:59]} 3. d4 {[%clk 0:02:59]}  Nf6 {[%clk 0:03:00]} 4. Nc3 {[%clk 0:02:59]}  cxd4 {[%clk 0:03:00]} 5. Nxd4 {[%clk 0:03:00]}  a6 {[%clk 0:03:00]} 6. Be3 {[%clk 0:03:00]}  e5 {[%clk 0:02:59]} 7. Nf3 {[%clk 0:03:01]}  Be6 {[%clk 0:02:57]} 8. Ng5 {[%clk 0:03:00]}  Be7 {[%clk 0:02:54]} 9. Nxe6 {[%clk 0:02:57]}  fxe6 {[%clk 0:02:55]} 10. g3 {[%clk 0:02:58]}  O-O {[%clk 0:02:53]} 11. Bh3 {[%clk 0:02:58]}  Qd7 {[%clk 0:02:49]} 12. Nd5 {[%clk 0:02:58]}  Bd8 {[%clk 0:02:12]} 13. Nxf6+ {[%clk 0:02:58]}  Bxf6 {[%clk 0:02:01]} 14. Qg4 {[%clk 0:02:57]}  Qc6 {[%clk 0:01:45]} 15. Qxe6+ {[%clk 0:02:56]}  Kh8 {[%clk 0:01:46]} 16. Bg2 {[%clk 0:02:42]}  Qxc2 {[%clk 0:01:22]} 17. Qxd6 {[%clk 0:02:41]}  Nc6 {[%clk 0:01:16]} 18. Qd2 {[%clk 0:02:41]}  Qc4 {[%clk 0:01:04]} 19. Qe2 {[%clk 0:02:41]}  Qb4+ {[%clk 0:00:57]} 20. Qd2 {[%clk 0:02:40]}  Qc4 {[%clk 0:00:57]} 21. Qe2 {[%clk 0:02:33]}  Qb4+ {[%clk 0:00:57]} 22. Bd2 {[%clk 0:02:31]}  Qxb2 {[%clk 0:00:51]} 23. O-O {[%clk 0:02:31]}  Nd4 {[%clk 0:00:51]} 24. Qd3 {[%clk 0:02:28]}  Qc2 {[%clk 0:00:44]} 25. Qxc2 {[%clk 0:02:23]}  Nxc2 {[%clk 0:00:45]} 26. Rab1 {[%clk 0:02:19]}  b5 {[%clk 0:00:41]} 27. f4 {[%clk 0:02:13]}  Rfd8 {[%clk 0:00:31]} 28. Ba5 {[%clk 0:02:08]}  Rd7 {[%clk 0:00:25]} 29. Rfd1 {[%clk 0:02:01]}  Rf7 {[%clk 0:00:18]} 30. Rd6 {[%clk 0:01:50]}  Nd4 {[%clk 0:00:12]} 31. Rxd4 {[%clk 0:01:48]}  exd4 {[%clk 0:00:12]} 32. e5 {[%clk 0:01:49]}  Re8 {[%clk 0:00:08]} 33. exf6 {[%clk 0:01:48]}  gxf6 {[%clk 0:00:07]} 34. Rd1 {[%clk 0:01:47]}  Re2 {[%clk 0:00:06]} 35. Rxd4 {[%clk 0:01:43]}  Rxa2 {[%clk 0:00:05]} 36. Rd8+ {[%clk 0:01:43]}  Kg7 {[%clk 0:00:04]} 37. Bc3 {[%clk 0:01:40]}  Re7 {[%clk 0:00:04]} 38. Bd5 {[%clk 0:01:10]}  Ree2 {[%clk 0:00:03]} 39. Rg8+ {[%clk 0:01:07]}  Kh6 {[%clk 0:00:02]} 40. Bxa2 {[%clk 0:01:08]}  Rxa2 {[%clk 0:00:00]} 41. Bxf6 {[%clk 0:01:09]} 1-0


[Site "https://www.chess.com"]

[Event "Titled Tuesday Blitz June 27 Early 2023"]
[White "Vargas Rodriguez, Wilver"]
[Black "BeReal24"]
[WhiteFideId "3509672"]
[WhiteElo "2136"]
[BlackElo "2460"]
[Result "1-0"]
[Round "2"]
[TimeControl "180+2"]
[Date "2023.06.27"]
[WhiteClock "0:00:04"]
[BlackClock "0:00:15"]
[Board "226"]

1. Nf3 {[%clk 0:03:00]}  d5 {[%clk 0:02:58]} 2. c4 {[%clk 0:02:57]}  e6 {[%clk 0:02:57]} 3. b3 {[%clk 0:02:57]}  Nf6 {[%clk 0:02:51]} 4. g3 {[%clk 0:02:54]}  Be7 {[%clk 0:02:51]} 5. Bg2 {[%clk 0:02:54]}  O-O {[%clk 0:02:51]} 6. O-O {[%clk 0:02:54]}  d4 {[%clk 0:02:52]} 7. Bb2 {[%clk 0:02:41]}  c5 {[%clk 0:02:51]} 8. b4 {[%clk 0:02:35]}  Nc6 {[%clk 0:02:43]} 9. b5 {[%clk 0:02:15]}  Nb8 {[%clk 0:02:34]} 10. e3 {[%clk 0:02:07]}  dxe3 {[%clk 0:02:33]} 11. fxe3 {[%clk 0:02:06]}  Nbd7 {[%clk 0:02:33]} 12. a4 {[%clk 0:02:02]}  Rb8 {[%clk 0:02:27]} 13. Qc2 {[%clk 0:01:55]}  b6 {[%clk 0:02:24]} 14. Ne5 {[%clk 0:01:36]}  Nxe5 {[%clk 0:02:15]} 15. Bxe5 {[%clk 0:01:35]}  Bd6 {[%clk 0:02:16]} 16. Bxf6 {[%clk 0:01:33]}  gxf6 {[%clk 0:02:17]} 17. Nc3 {[%clk 0:01:27]}  f5 {[%clk 0:02:13]} 18. e4 {[%clk 0:01:08]}  Be5 {[%clk 0:02:04]} 19. exf5 {[%clk 0:01:05]}  Qd4+ {[%clk 0:02:00]} 20. Kh1 {[%clk 0:01:04]}  exf5 {[%clk 0:01:58]} 21. Rxf5 {[%clk 0:00:24]}  Bxf5 {[%clk 0:01:56]} 22. Qxf5 {[%clk 0:00:24]}  Rbd8 {[%clk 0:01:53]} 23. Be4 {[%clk 0:00:23]}  Rfe8 {[%clk 0:01:48]} 24. Rf1 {[%clk 0:00:15]}  f6 {[%clk 0:01:41]} 25. Qxh7+ {[%clk 0:00:12]}  Kf8 {[%clk 0:01:41]} 26. Nd5 {[%clk 0:00:10]}  Qxd2 {[%clk 0:01:06]} 27. Bg6 {[%clk 0:00:06]}  Qxd5+ {[%clk 0:00:36]} 28. cxd5 {[%clk 0:00:05]}  Rd7 {[%clk 0:00:35]} 29. Qh8+ {[%clk 0:00:04]}  Ke7 {[%clk 0:00:34]} 30. Qxe8+ {[%clk 0:00:04]}  Kd6 {[%clk 0:00:35]} 31. Qe6+ {[%clk 0:00:04]}  Kc7 {[%clk 0:00:35]} 32. Qc6+ {[%clk 0:00:05]}  Kd8 {[%clk 0:00:36]} 33. Bf5 {[%clk 0:00:04]}  Rd6 {[%clk 0:00:33]} 34. Qa8+ {[%clk 0:00:02]}  Ke7 {[%clk 0:00:34]} 35. Be6 {[%clk 0:00:01]}  c4 {[%clk 0:00:27]} 36. Qxa7+ {[%clk 0:00:01]}  Kd8 {[%clk 0:00:25]} 37. Qf7 {[%clk 0:00:02]}  Rxe6 {[%clk 0:00:14]} 38. Qxe6 {[%clk 0:00:02]}  c3 {[%clk 0:00:14]} 39. d6 {[%clk 0:00:03]}  c2 {[%clk 0:00:14]} 40. Qe7+ {[%clk 0:00:03]}  Kc8 {[%clk 0:00:15]} 41. Qc7# {[%clk 0:00:04]} 1-0


[Site "https://www.chess.com"]

[Event "Titled Tuesday Blitz June 27 Early 2023"]
[White "Politov, Pavel Y."]
[Black "Reprintsev, Alexander"]
[WhiteFideId "24110515"]
[BlackFideId "14100541"]
[WhiteElo "2127"]
[BlackElo "2459"]
[Result "0-1"]
[Round "2"]
[TimeControl "180+2"]
[Date "2023.06.27"]
[WhiteClock "0:00:00"]
[BlackClock "0:01:03"]
[Board "227"]

1. e4 {[%clk 0:03:00]}  d5 {[%clk 0:02:59]} 2. exd5 {[%clk 0:03:00]}  Qxd5 {[%clk 0:02:59]} 3. Nc3 {[%clk 0:03:00]}  Qa5 {[%clk 0:02:59]} 4. d4 {[%clk 0:03:00]}  Nf6 {[%clk 0:02:59]} 5. Nf3 {[%clk 0:02:56]}  Nc6 {[%clk 0:02:58]} 6. Bd2 {[%clk 0:02:42]}  a6 {[%clk 0:02:58]} 7. h3 {[%clk 0:02:06]}  Bf5 {[%clk 0:02:32]} 8. Bc4 {[%clk 0:01:53]}  Nb4 {[%clk 0:02:23]} 9. Bb3 {[%clk 0:01:36]}  Qb6 {[%clk 0:02:04]} 10. O-O {[%clk 0:01:22]}  e6 {[%clk 0:01:59]} 11. a3 {[%clk 0:01:20]}  Nbd5 {[%clk 0:01:56]} 12. Nxd5 {[%clk 0:01:18]}  exd5 {[%clk 0:01:55]} 13. Re1+ {[%clk 0:00:59]}  Be6 {[%clk 0:01:54]} 14. Qe2 {[%clk 0:00:47]}  O-O-O {[%clk 0:01:54]} 15. a4 {[%clk 0:00:36]}  h6 {[%clk 0:01:52]} 16. a5 {[%clk 0:00:35]}  Qd6 {[%clk 0:01:48]} 17. Ne5 {[%clk 0:00:34]}  Ne4 {[%clk 0:01:37]} 18. Bf4 {[%clk 0:00:30]}  Qe7 {[%clk 0:01:33]} 19. f3 {[%clk 0:00:17]}  Nd6 {[%clk 0:01:33]} 20. Nxf7 {[%clk 0:00:08]}  Qxf7 {[%clk 0:01:15]} 21. Qxe6+ {[%clk 0:00:07]}  Qxe6 {[%clk 0:01:15]} 22. Rxe6 {[%clk 0:00:07]}  c6 {[%clk 0:01:16]} 23. Rae1 {[%clk 0:00:05]}  Nf5 {[%clk 0:01:15]} 24. Re8 {[%clk 0:00:02]}  Bd6 {[%clk 0:01:12]} 25. Rxd8+ {[%clk 0:00:01]}  Kxd8 {[%clk 0:01:08]} 26. Bxd6 {[%clk 0:00:01]}  Nxd6 {[%clk 0:01:08]} 27. Re6 {[%clk 0:00:00]}  Kd7 {[%clk 0:01:03]} 0-1


[Site "https://www.chess.com"]

[Event "Titled Tuesday Blitz June 27 Early 2023"]
[White "Morgunov, Anatoly"]
[Black "deloewre"]
[WhiteFideId "4145909"]
[WhiteElo "2457"]
[BlackElo "2127"]
[Result "1-0"]
[Round "2"]
[TimeControl "180+2"]
[Date "2023.06.27"]
[WhiteClock "0:00:40"]
[BlackClock "0:00:00"]
[Board "228"]

1. d4 {[%clk 0:03:00]}  Nf6 {[%clk 0:02:58]} 2. c4 {[%clk 0:03:00]}  g6 {[%clk 0:02:57]} 3. Nc3 {[%clk 0:03:00]}  Bg7 {[%clk 0:02:55]} 4. e4 {[%clk 0:02:52]}  d6 {[%clk 0:02:54]} 5. Be2 {[%clk 0:02:52]}  O-O {[%clk 0:02:52]} 6. Be3 {[%clk 0:02:52]}  a6 {[%clk 0:02:50]} 7. g4 {[%clk 0:02:51]}  c6 {[%clk 0:02:37]} 8. g5 {[%clk 0:02:49]}  Ne8 {[%clk 0:02:30]} 9. h4 {[%clk 0:02:48]}  b5 {[%clk 0:02:25]} 10. h5 {[%clk 0:02:43]}  Nc7 {[%clk 0:02:13]} 11. a3 {[%clk 0:02:40]}  bxc4 {[%clk 0:02:11]} 12. Bxc4 {[%clk 0:02:39]}  d5 {[%clk 0:02:10]} 13. exd5 {[%clk 0:02:36]}  cxd5 {[%clk 0:02:09]} 14. Bd3 {[%clk 0:02:29]}  Nc6 {[%clk 0:01:59]} 15. Be2 {[%clk 0:02:26]}  e5 {[%clk 0:01:45]} 16. Nf3 {[%clk 0:02:20]}  exd4 {[%clk 0:01:40]} 17. Nxd4 {[%clk 0:02:21]}  Nxd4 {[%clk 0:01:39]} 18. Bxd4 {[%clk 0:02:21]}  Qxg5 {[%clk 0:01:26]} 19. Bxg7 {[%clk 0:02:15]}  Kxg7 {[%clk 0:01:25]} 20. h6+ {[%clk 0:02:15]}  Kg8 {[%clk 0:01:19]} 21. Qd4 {[%clk 0:02:14]}  Ne6 {[%clk 0:01:14]} 22. Qxd5 {[%clk 0:02:04]}  Qxd5 {[%clk 0:01:10]} 23. Nxd5 {[%clk 0:02:05]}  Bb7 {[%clk 0:01:08]} 24. Nf6+ {[%clk 0:02:00]}  Kh8 {[%clk 0:01:07]} 25. Rh3 {[%clk 0:01:51]}  Rac8 {[%clk 0:01:04]} 26. Rc3 {[%clk 0:01:37]}  Rxc3 {[%clk 0:01:02]} 27. bxc3 {[%clk 0:01:38]}  Rc8 {[%clk 0:00:58]} 28. Rb1 {[%clk 0:01:37]}  Rc7 {[%clk 0:00:57]} 29. Rb6 {[%clk 0:01:33]}  Nc5 {[%clk 0:00:49]} 30. Bc4 {[%clk 0:01:21]}  Na4 {[%clk 0:00:37]} 31. Rd6 {[%clk 0:01:10]}  Rc8 {[%clk 0:00:33]} 32. Bxa6 {[%clk 0:00:58]}  Bxa6 {[%clk 0:00:31]} 33. Rxa6 {[%clk 0:00:59]}  Nxc3 {[%clk 0:00:30]} 34. Ra7 {[%clk 0:00:57]}  Rf8 {[%clk 0:00:21]} 35. Re7 {[%clk 0:00:52]}  Nb5 {[%clk 0:00:18]} 36. a4 {[%clk 0:00:50]}  Nd4 {[%clk 0:00:17]} 37. a5 {[%clk 0:00:44]}  Nf5 {[%clk 0:00:16]} 38. Re8 {[%clk 0:00:42]}  Rxe8+ {[%clk 0:00:14]} 39. Nxe8 {[%clk 0:00:43]}  Nd4 {[%clk 0:00:11]} 40. a6 {[%clk 0:00:43]}  Nc6 {[%clk 0:00:10]} 41. Nd6 {[%clk 0:00:41]}  Kg8 {[%clk 0:00:00]} 42. Nc8 {[%clk 0:00:40]} 1-0


[Site "https://www.chess.com"]

[Event "Titled Tuesday Blitz June 27 Early 2023"]
[White "Boraso, Alessio"]
[Black "Floresvillar Gonzalez, Luis Migu"]
[WhiteFideId "848077"]
[BlackFideId "5100542"]
[WhiteElo "2457"]
[BlackElo "2126"]
[Result "1-0"]
[Round "2"]
[TimeControl "180+2"]
[Date "2023.06.27"]
[WhiteClock "0:00:11"]
[BlackClock "0:00:47"]
[Board "229"]

1. e4 {[%clk 0:03:00]}  c6 {[%clk 0:03:00]} 2. d4 {[%clk 0:02:59]}  c5 {[%clk 0:03:01]} 3. Nf3 {[%clk 0:02:43]}  cxd4 {[%clk 0:02:59]} 4. Nxd4 {[%clk 0:02:43]}  Nc6 {[%clk 0:02:58]} 5. Nc3 {[%clk 0:02:43]}  Nxd4 {[%clk 0:02:55]} 6. Qxd4 {[%clk 0:02:42]}  d6 {[%clk 0:02:56]} 7. Bc4 {[%clk 0:02:40]}  Nf6 {[%clk 0:02:55]} 8. O-O {[%clk 0:02:39]}  e6 {[%clk 0:02:43]} 9. Bg5 {[%clk 0:02:34]}  Be7 {[%clk 0:02:42]} 10. Rad1 {[%clk 0:02:35]}  O-O {[%clk 0:02:40]} 11. Bxf6 {[%clk 0:02:33]}  Bxf6 {[%clk 0:02:39]} 12. Qxd6 {[%clk 0:02:33]}  Qxd6 {[%clk 0:02:39]} 13. Rxd6 {[%clk 0:02:33]}  Bxc3 {[%clk 0:02:39]} 14. bxc3 {[%clk 0:02:33]}  a6 {[%clk 0:02:39]} 15. a4 {[%clk 0:02:25]}  b5 {[%clk 0:02:27]} 16. axb5 {[%clk 0:02:24]}  axb5 {[%clk 0:02:28]} 17. Bxb5 {[%clk 0:02:24]}  e5 {[%clk 0:02:25]} 18. Rfd1 {[%clk 0:02:14]}  Be6 {[%clk 0:02:24]} 19. Bc6 {[%clk 0:01:45]}  Rac8 {[%clk 0:02:22]} 20. Bd7 {[%clk 0:01:35]}  Bxd7 {[%clk 0:02:19]} 21. Rxd7 {[%clk 0:01:36]}  Rxc3 {[%clk 0:02:19]} 22. R1d2 {[%clk 0:01:36]}  f6 {[%clk 0:02:11]} 23. h4 {[%clk 0:01:29]}  Rfc8 {[%clk 0:02:10]} 24. Ra7 {[%clk 0:01:25]}  R8c7 {[%clk 0:02:01]} 25. Rxc7 {[%clk 0:01:01]}  Rxc7 {[%clk 0:02:00]} 26. Kf1 {[%clk 0:01:02]}  Kf7 {[%clk 0:01:58]} 27. Ke2 {[%clk 0:01:01]}  Kg6 {[%clk 0:01:58]} 28. g3 {[%clk 0:00:56]}  Kh5 {[%clk 0:01:58]} 29. f3 {[%clk 0:00:56]}  h6 {[%clk 0:01:57]} 30. Kd3 {[%clk 0:00:53]}  g5 {[%clk 0:01:55]} 31. c4 {[%clk 0:00:47]}  gxh4 {[%clk 0:01:55]} 32. Rh2 {[%clk 0:00:46]}  Rd7+ {[%clk 0:01:46]} 33. Kc3 {[%clk 0:00:45]}  Rd1 {[%clk 0:01:40]} 34. Rxh4+ {[%clk 0:00:45]}  Kg5 {[%clk 0:01:39]} 35. Rg4+ {[%clk 0:00:46]}  Kh5 {[%clk 0:01:36]} 36. Rh4+ {[%clk 0:00:43]}  Kg5 {[%clk 0:01:36]} 37. f4+ {[%clk 0:00:34]}  exf4 {[%clk 0:01:32]} 38. Rxf4 {[%clk 0:00:35]}  Rg1 {[%clk 0:01:29]} 39. Rf3 {[%clk 0:00:34]}  Kg4 {[%clk 0:01:25]} 40. Rxf6 {[%clk 0:00:32]}  Rxg3+ {[%clk 0:01:24]} 41. Kd4 {[%clk 0:00:33]}  h5 {[%clk 0:01:23]} 42. Rg6+ {[%clk 0:00:17]}  Kf3 {[%clk 0:01:17]} 43. Rxg3+ {[%clk 0:00:10]}  Kxg3 {[%clk 0:01:17]} 44. e5 {[%clk 0:00:10]}  h4 {[%clk 0:01:17]} 45. e6 {[%clk 0:00:11]}  h3 {[%clk 0:01:17]} 46. e7 {[%clk 0:00:12]}  h2 {[%clk 0:01:17]} 47. e8=Q {[%clk 0:00:13]}  h1=Q {[%clk 0:01:17]} 48. Qg6+ {[%clk 0:00:13]}  Kf2 {[%clk 0:01:14]} 49. Qc2+ {[%clk 0:00:11]}  Kg3 {[%clk 0:01:11]} 50. Qg6+ {[%clk 0:00:12]}  Kf2 {[%clk 0:01:09]} 51. Qf5+ {[%clk 0:00:12]}  Kg3 {[%clk 0:01:04]} 52. Qg5+ {[%clk 0:00:13]}  Kf2 {[%clk 0:01:03]} 53. Qf4+ {[%clk 0:00:12]}  Ke2 {[%clk 0:00:59]} 54. Qe4+ {[%clk 0:00:12]}  Kd2 {[%clk 0:00:47]} 55. Qxh1 {[%clk 0:00:11]} 1-0


[Site "https://www.chess.com"]

[Event "Titled Tuesday Blitz June 27 Early 2023"]
[White "Gnechko, Ruslan"]
[Black "Winkels, Marcel"]
[WhiteFideId "14135868"]
[BlackFideId "1003887"]
[WhiteElo "2455"]
[BlackElo "2119"]
[Result "1-0"]
[Round "2"]
[TimeControl "180+2"]
[Date "2023.06.27"]
[WhiteClock "0:00:09"]
[BlackClock "0:00:00"]
[Board "230"]

1. d4 {[%clk 0:02:59]}  Nf6 {[%clk 0:02:58]} 2. c4 {[%clk 0:02:59]}  g6 {[%clk 0:02:58]} 3. Nf3 {[%clk 0:02:59]}  c6 {[%clk 0:02:56]} 4. g3 {[%clk 0:02:58]}  Bg7 {[%clk 0:02:55]} 5. Bg2 {[%clk 0:02:58]}  d5 {[%clk 0:02:55]} 6. O-O {[%clk 0:02:58]}  O-O {[%clk 0:02:54]} 7. cxd5 {[%clk 0:02:58]}  cxd5 {[%clk 0:02:53]} 8. Nc3 {[%clk 0:02:59]}  Ne4 {[%clk 0:02:53]} 9. Qb3 {[%clk 0:02:54]}  Nc6 {[%clk 0:02:51]} 10. Nxd5 {[%clk 0:02:45]}  Be6 {[%clk 0:02:39]} 11. Nxe7+ {[%clk 0:02:16]}  Nxe7 {[%clk 0:02:30]} 12. Qxb7 {[%clk 0:02:15]}  Bd5 {[%clk 0:02:23]} 13. Qa6 {[%clk 0:02:14]}  Qb6 {[%clk 0:02:14]} 14. Qa3 {[%clk 0:02:00]}  Nc6 {[%clk 0:02:10]} 15. e3 {[%clk 0:02:00]}  Nb4 {[%clk 0:02:01]} 16. Ne1 {[%clk 0:01:45]}  Nf6 {[%clk 0:01:52]} 17. Bd2 {[%clk 0:01:38]}  Bxg2 {[%clk 0:01:51]} 18. Kxg2 {[%clk 0:01:33]}  Qc6+ {[%clk 0:01:49]} 19. Kg1 {[%clk 0:01:31]}  Nbd5 {[%clk 0:01:24]} 20. Rc1 {[%clk 0:01:29]}  Qb7 {[%clk 0:01:18]} 21. Nd3 {[%clk 0:01:24]}  Ne4 {[%clk 0:01:04]} 22. Nc5 {[%clk 0:01:14]}  Nxc5 {[%clk 0:00:59]} 23. Rxc5 {[%clk 0:01:15]}  Rfd8 {[%clk 0:00:57]} 24. Qa5 {[%clk 0:00:42]}  Rac8 {[%clk 0:00:43]} 25. Bc3 {[%clk 0:00:29]}  Nf6 {[%clk 0:00:34]} 26. f3 {[%clk 0:00:21]}  Qe7 {[%clk 0:00:29]} 27. Kf2 {[%clk 0:00:20]}  Nd5 {[%clk 0:00:28]} 28. Rxd5 {[%clk 0:00:18]}  Re8 {[%clk 0:00:27]} 29. e4 {[%clk 0:00:16]}  f5 {[%clk 0:00:26]} 30. e5 {[%clk 0:00:14]}  Red8 {[%clk 0:00:21]} 31. Rxd8+ {[%clk 0:00:13]}  Rxd8 {[%clk 0:00:21]} 32. Re1 {[%clk 0:00:13]}  Qd7 {[%clk 0:00:18]} 33. Qc5 {[%clk 0:00:10]}  Rc8 {[%clk 0:00:16]} 34. Qd6 {[%clk 0:00:08]}  Qxd6 {[%clk 0:00:14]} 35. exd6 {[%clk 0:00:09]}  Bf8 {[%clk 0:00:14]} 36. d7 {[%clk 0:00:08]}  Rd8 {[%clk 0:00:14]} 37. Re6 {[%clk 0:00:08]}  Rxd7 {[%clk 0:00:14]} 38. Ke3 {[%clk 0:00:08]}  Bg7 {[%clk 0:00:13]} 39. Kd3 {[%clk 0:00:08]}  Kf7 {[%clk 0:00:13]} 40. Ra6 {[%clk 0:00:07]}  Bf6 {[%clk 0:00:11]} 41. b4 {[%clk 0:00:08]}  Bd8 {[%clk 0:00:11]} 42. f4 {[%clk 0:00:08]}  Bb6 {[%clk 0:00:11]} 43. a4 {[%clk 0:00:09]}  Re7 {[%clk 0:00:09]} 44. a5 {[%clk 0:00:09]}  Bd8 {[%clk 0:00:08]} 45. b5 {[%clk 0:00:09]}  Rb7 {[%clk 0:00:07]} 46. Kc4 {[%clk 0:00:09]}  Rc7+ {[%clk 0:00:07]} 47. Kd3 {[%clk 0:00:07]}  Rb7 {[%clk 0:00:06]} 48. Kc4 {[%clk 0:00:08]}  Rc7+ {[%clk 0:00:06]} 49. Rc6 {[%clk 0:00:09]}  Rb7 {[%clk 0:00:06]} 50. d5 {[%clk 0:00:09]}  Ke7 {[%clk 0:00:04]} 51. a6 {[%clk 0:00:09]}  Rd7 {[%clk 0:00:03]} 52. Bf6+ {[%clk 0:00:10]}  Ke8 {[%clk 0:00:02]} 53. Rc8 {[%clk 0:00:09]}  Rd6 {[%clk 0:00:00]} 54. Rxd8+ {[%clk 0:00:09]} 1-0


[Site "https://www.chess.com"]

[Event "Titled Tuesday Blitz June 27 Early 2023"]
[White "Tqebuchava, Zurab"]
[Black "Begunov, Konstantin"]
[WhiteFideId "13601113"]
[BlackFideId "4118510"]
[WhiteElo "2104"]
[BlackElo "2451"]
[Result "0-1"]
[Round "2"]
[TimeControl "180+2"]
[Date "2023.06.27"]
[WhiteClock "0:00:00"]
[BlackClock "0:00:09"]
[Board "231"]

1. e4 {[%clk 0:03:00]}  c5 {[%clk 0:02:58]} 2. Nf3 {[%clk 0:03:00]}  d6 {[%clk 0:02:58]} 3. Bb5+ {[%clk 0:02:59]}  Bd7 {[%clk 0:02:58]} 4. Bxd7+ {[%clk 0:02:59]}  Qxd7 {[%clk 0:02:59]} 5. O-O {[%clk 0:02:59]}  Nf6 {[%clk 0:02:59]} 6. Re1 {[%clk 0:02:59]}  Nc6 {[%clk 0:02:59]} 7. c3 {[%clk 0:02:59]}  e6 {[%clk 0:03:00]} 8. d4 {[%clk 0:02:59]}  cxd4 {[%clk 0:03:01]} 9. Nxd4 {[%clk 0:02:59]}  Be7 {[%clk 0:02:57]} 10. Na3 {[%clk 0:02:52]}  a6 {[%clk 0:02:57]} 11. Nac2 {[%clk 0:02:51]}  O-O {[%clk 0:02:55]} 12. Bg5 {[%clk 0:02:47]}  b5 {[%clk 0:02:50]} 13. Nxc6 {[%clk 0:02:43]}  Qxc6 {[%clk 0:02:49]} 14. Nd4 {[%clk 0:02:42]}  Qc5 {[%clk 0:02:44]} 15. Bh4 {[%clk 0:02:35]}  Rfd8 {[%clk 0:02:29]} 16. Qe2 {[%clk 0:02:30]}  Rab8 {[%clk 0:02:13]} 17. Rad1 {[%clk 0:02:25]}  a5 {[%clk 0:02:09]} 18. b4 {[%clk 0:02:18]}  axb4 {[%clk 0:02:05]} 19. cxb4 {[%clk 0:02:18]}  Qb6 {[%clk 0:01:51]} 20. h3 {[%clk 0:02:07]}  Rdc8 {[%clk 0:01:50]} 21. Nb3 {[%clk 0:01:58]}  Rc4 {[%clk 0:01:44]} 22. Bxf6 {[%clk 0:01:42]}  Bxf6 {[%clk 0:01:43]} 23. a3 {[%clk 0:01:42]}  Rc3 {[%clk 0:01:29]} 24. Rd3 {[%clk 0:01:38]}  Rbc8 {[%clk 0:01:25]} 25. Rxc3 {[%clk 0:01:37]}  Rxc3 {[%clk 0:01:25]} 26. Rc1 {[%clk 0:01:09]}  Rxc1+ {[%clk 0:00:18]} 27. Nxc1 {[%clk 0:01:07]}  g6 {[%clk 0:00:19]} 28. Qc2 {[%clk 0:00:41]}  Qd4 {[%clk 0:00:18]} 29. Nb3 {[%clk 0:00:32]}  Qe5 {[%clk 0:00:15]} 30. Qd3 {[%clk 0:00:27]}  Kg7 {[%clk 0:00:14]} 31. g3 {[%clk 0:00:24]}  Qb2 {[%clk 0:00:14]} 32. Nd2 {[%clk 0:00:20]}  Be5 {[%clk 0:00:14]} 33. Kg2 {[%clk 0:00:20]}  Qa2 {[%clk 0:00:14]} 34. Nf3 {[%clk 0:00:18]}  Bb2 {[%clk 0:00:14]} 35. Qxb5 {[%clk 0:00:15]}  Qxa3 {[%clk 0:00:14]} 36. Qc4 {[%clk 0:00:13]}  Bf6 {[%clk 0:00:11]} 37. b5 {[%clk 0:00:13]}  Qb2 {[%clk 0:00:12]} 38. Qc6 {[%clk 0:00:12]}  Qb4 {[%clk 0:00:11]} 39. b6 {[%clk 0:00:11]}  d5 {[%clk 0:00:10]} 40. e5 {[%clk 0:00:11]}  Be7 {[%clk 0:00:09]} 41. b7 {[%clk 0:00:10]}  Bc5 {[%clk 0:00:09]} 42. Qc8 {[%clk 0:00:08]}  Ba7 {[%clk 0:00:10]} 43. Ng5 {[%clk 0:00:05]}  Qb6 {[%clk 0:00:09]} 44. Qd7 {[%clk 0:00:00]}  Qxf2+ {[%clk 0:00:09]} 0-1


[Site "https://www.chess.com"]